bitfinex/quotes_BTCUSD_20240623
["timestamp","ask_amount","ask_price","bid_price","bid_amount"]
[1719105307036,0.19341368,64453.0,64452.0,0.25975429]
[1719105307231,0.19341368,64453.0,64452.0,0.27975429]
[1719105307586,0.20752105,64453.0,64452.0,0.81156229]
[1719105307795,0.31199543,64465.0,64457.0,0.25474029]
[1719105307796,0.139438,64461.0,64457.0,0.25474029]
[1719105308010,0.13257965,64460.0,64457.0,0.25474029]
[1719105308237,0.09905599,64459.0,64457.0,0.25474029]
[1719105308478,0.139438,64463.0,64458.0,0.155139]
[1719105308706,0.17043145,64462.0,64458.0,0.155139]
[1719105308931,0.20016228,64461.0,64458.0,0.175139]
[1719105309152,0.20016228,64461.0,64459.0,0.155137]
[1719105309153,0.20016228,64460.0,64459.0,0.155137]
[1719105309354,0.20016228,64460.0,64458.0,0.02]
[1719105309603,0.09816174,64459.0,64458.0,0.155139]
[1719105309839,0.09042174,64459.0,64458.0,0.155139]
[1719105310470,0.02973083,64459.0,64458.0,0.155139]
[1719105310933,0.02873647,64459.0,64458.0,0.155139]
[1719105311147,0.12921587,64459.0,64458.0,0.155139]
[1719105311550,0.12921587,64459.0,64458.0,0.156139]
[1719105311781,0.12921587,64459.0,64457.0,0.02305929]
[1719105311984,0.13944612,64461.0,64458.0,0.155139]
[1719105312186,0.26790258,64460.0,64457.0,0.02305929]
[1719105312399,0.155131,64462.0,64457.0,0.02305929]
[1719105312400,0.13944612,64458.0,64457.0,0.02305929]
[1719105312598,0.21607974,64458.0,64457.0,0.02305929]
[1719105313546,0.001,64461.0,64457.0,0.02305929]
[1719105313761,0.21206894,64460.0,64457.0,0.02305929]
[1719105313963,0.21206894,64459.0,64457.0,0.02305929]
[1719105314161,0.21206894,64458.0,64457.0,0.02305929]
[1719105314969,0.21306894,64458.0,64457.0,0.03205929]
[1719105316648,0.21292686,64458.0,64457.0,0.03205929]
[1719105318068,0.21292686,64458.0,64457.0,0.03200773]
[1719105319117,0.001,64458.0,64457.0,0.03200773]
[1719105319317,0.101042,64458.0,64457.0,0.03200773]
[1719105319518,0.21283942,64458.0,64457.0,0.03200773]
[1719105319868,0.27916964,64458.0,64457.0,0.03200773]
[1719105320022,0.06741314,64458.0,64457.0,0.03200773]
[1719105320354,0.16749579,64458.0,64457.0,0.03200773]
[1719105320540,0.27912403,64458.0,64457.0,0.03200773]
[1719105321342,0.27990721,64458.0,64457.0,0.03200773]
[1719105322883,0.28002106,64458.0,64457.0,0.03200773]
[1719105323847,0.74543906,64458.0,64457.0,0.009]
[1719105325697,0.63288606,64458.0,64457.0,0.009]
[1719105325897,0.74142373,64458.0,64457.0,0.009]
[1719105328751,0.71877623,64458.0,64457.0,0.009]
[1719105328956,0.74284756,64458.0,64457.0,0.009]
[1719105329095,0.7428719,64458.0,64457.0,0.009]
[1719105330214,0.74163857,64458.0,64457.0,0.009]
[1719105331151,0.43135957,64458.0,64457.0,0.009]
[1719105331334,0.74163857,64458.0,64457.0,0.009]
[1719105331727,0.6770813,64458.0,64457.0,0.009]
[1719105331891,0.74377201,64458.0,64457.0,0.009]
[1719105333422,0.43349301,64458.0,64457.0,0.009]
[1719105334646,0.43545536,64458.0,64457.0,0.009]
[1719105335285,0.45662929,64458.0,64457.0,0.009]
[1719105335491,0.50852929,64458.0,64457.0,0.009]
[1719105335872,0.81880829,64458.0,64457.0,0.009]
[1719105337512,0.53949193,64458.0,64457.0,0.009]
[1719105337848,0.81543432,64458.0,64457.0,0.009]
[1719105338179,0.64764125,64458.0,64457.0,0.009]
[1719105338393,0.25267268,64458.0,64457.0,0.009]
[1719105338539,0.22921293,64458.0,64457.0,0.009]
[1719105340922,0.3608072,64458.0,64457.0,0.009]
[1719105341192,0.47465125,64458.0,64457.0,0.009]
[1719105341395,0.41526987,64458.0,64457.0,0.009]
[1719105342459,0.28572469,64458.0,64457.0,0.009]
[1719105342656,0.33762469,64458.0,64457.0,0.009]
[1719105342876,0.28572469,64458.0,64457.0,0.009]
[1719105343038,0.33762469,64458.0,64457.0,0.009]
[1719105345549,0.28572469,64458.0,64457.0,0.009]
[1719105345823,0.33762469,64458.0,64457.0,0.009]
[1719105346774,0.22921293,64458.0,64457.0,0.009]
[1719105348323,0.07407393,64458.0,64457.0,0.009]
[1719105349305,0.22921293,64458.0,64457.0,0.009]
[1719105349798,0.399817,64458.0,64457.0,0.009]
[1719105351496,0.50966934,64458.0,64457.0,0.009]
[1719105352117,0.50966438,64458.0,64457.0,0.009]
[1719105353286,0.35452538,64458.0,64457.0,0.009]
[1719105355208,0.35622416,64458.0,64457.0,0.009]
[1719105355480,0.30984253,64458.0,64457.0,0.009]
[1719105355668,0.33547138,64458.0,64457.0,0.009]
[1719105356720,0.16512253,64458.0,64457.0,0.009]
[1719105356913,0.33524571,64458.0,64457.0,0.009]
[1719105358184,0.1209775,64458.0,64457.0,0.009]
[1719105358387,0.33400082,64458.0,64457.0,0.009]
[1719105360847,0.33398325,64458.0,64457.0,0.009]
[1719105363341,0.28208325,64458.0,64457.0,0.009]
[1719105363540,0.28208325,64458.0,64457.0,0.474426]
[1719105363833,0.28208325,64458.0,64457.0,0.164142]
[1719105364040,0.19576645,64458.0,64457.0,0.164142]
[1719105364240,0.28239653,64458.0,64457.0,0.164142]
[1719105365115,0.1128763,64458.0,64457.0,0.164142]
[1719105365285,0.28211519,64458.0,64457.0,0.164142]
[1719105367634,0.28211519,64458.0,64457.0,0.009]
[1719105367635,0.33401519,64458.0,64457.0,0.009]
[1719105369430,0.33248079,64458.0,64457.0,0.009]
[1719105372475,0.06647792,64458.0,64457.0,0.009]
[1719105372800,0.12165991,64459.0,64457.0,0.009]
[1719105373028,0.11837794,64458.0,64457.0,0.009]
[1719105373746,0.11837794,64458.0,64455.0,0.02300773]
[1719105373975,0.05510937,64457.0,64455.0,0.02300773]
[1719105374175,0.0519,64458.0,64455.0,0.02300773]
[1719105374176,0.05510937,64456.0,64455.0,0.02300773]
[1719105375538,0.05508653,64456.0,64455.0,0.02300773]
[1719105376387,0.05508653,64456.0,64455.0,0.03300773]
[1719105376585,0.05508653,64456.0,64455.0,0.02300773]
[1719105376911,0.155151,64453.0,64452.0,0.000935]
[1719105377112,0.26213753,64453.0,64452.0,0.000935]
[1719105378381,0.207051,64453.0,64452.0,0.000935]
[1719105378604,0.26195225,64453.0,64452.0,0.000935]
[1719105378811,0.57225525,64453.0,64452.0,0.000935]
[1719105378997,0.52035525,64453.0,64452.0,0.000935]
[1719105379198,0.57225525,64453.0,64452.0,0.000935]
[1719105379403,0.57325525,64453.0,64452.0,0.014935]
[1719105380547,0.66202635,64453.0,64452.0,0.014935]
[1719105381520,0.66163573,64453.0,64452.0,0.014935]
[1719105382460,0.72958813,64453.0,64452.0,0.014935]
[1719105384360,0.92003873,64453.0,64452.0,0.014935]
[1719105384557,1.03920811,64453.0,64452.0,0.014935]
[1719105387403,0.828657,64453.0,64452.0,0.014935]
[1719105387630,1.07150062,64453.0,64452.0,0.014935]
[1719105387969,1.36180362,64453.0,64452.0,0.014935]
[1719105389216,1.36080362,64453.0,64452.0,0.000935]
[1719105389634,1.36080362,64453.0,64452.0,0.006935]
[1719105389987,1.53336474,64453.0,64452.0,0.006935]
[1719105390199,1.71446474,64453.0,64452.0,0.006935]
[1719105390407,2.07738933,64453.0,64452.0,0.006935]
[1719105390756,2.07726764,64453.0,64452.0,0.006935]
[1719105391856,2.20246181,64453.0,64452.0,0.006935]
[1719105392018,2.03714202,64453.0,64452.0,0.006935]
[1719105392422,2.03714202,64453.0,64452.0,0.000935]
[1719105392623,2.03714202,64453.0,64452.0,0.005935]
[1719105393388,1.75316948,64453.0,64452.0,0.005935]
[1719105393596,2.03797705,64453.0,64452.0,0.005935]
[1719105395197,2.01797705,64453.0,64452.0,0.005935]
[1719105395431,2.03797705,64453.0,64452.0,0.005935]
[1719105395992,1.91254456,64453.0,64452.0,0.005935]
[1719105396398,1.69162112,64453.0,64452.0,0.005935]
[1719105396646,1.91245246,64453.0,64452.0,0.005935]
[1719105397834,2.19273298,64453.0,64452.0,0.005935]
[1719105398747,2.11163298,64453.0,64452.0,0.005935]
[1719105399579,2.11146066,64453.0,64452.0,0.005935]
[1719105399858,1.84354548,64453.0,64452.0,0.005935]
[1719105400083,2.11145654,64453.0,64452.0,0.005935]
[1719105401137,2.11163681,64453.0,64452.0,0.005935]
[1719105402536,2.15037053,64453.0,64452.0,0.005935]
[1719105402696,4.63217253,64453.0,64452.0,0.005935]
[1719105403121,1.086281,64440.0,64439.0,0.009361]
[1719105403323,1.51223886,64440.0,64439.0,0.009361]
[1719105403529,1.49223886,64440.0,64439.0,0.009361]
[1719105404590,1.69223886,64440.0,64439.0,0.009361]
[1719105405026,1.22931174,64440.0,64439.0,0.009361]
[1719105405227,0.86704574,64440.0,64439.0,0.009361]
[1719105405357,0.66704574,64440.0,64439.0,0.235761]
[1719105405556,0.74902423,64440.0,64439.0,0.235761]
[1719105405781,0.75002423,64440.0,64439.0,0.249761]
[1719105406424,0.61001374,64440.0,64439.0,0.249761]
[1719105406640,0.74916367,64440.0,64439.0,0.249761]
[1719105406797,0.60901374,64440.0,64439.0,0.235761]
[1719105407011,0.62713488,64440.0,64439.0,0.244761]
[1719105407204,0.62713481,64440.0,64439.0,0.244761]
[1719105407406,0.62713419,64440.0,64439.0,0.244761]
[1719105407987,0.61001374,64440.0,64439.0,0.244761]
[1719105408628,0.5209656,64440.0,64439.0,0.244761]
[1719105408867,0.60954664,64440.0,64439.0,0.244761]
[1719105409071,0.466549,64440.0,64439.0,0.244761]
[1719105409267,0.60962469,64440.0,64439.0,0.244761]
[1719105409615,0.12502839,64440.0,64439.0,0.80522473]
[1719105409819,0.12502839,64440.0,64439.0,0.75332473]
[1719105409820,0.10183852,64440.0,64439.0,0.75332473]
[1719105409942,0.10183852,64440.0,64439.0,1.06369573]
[1719105409943,0.05545661,64440.0,64439.0,1.06369573]
[1719105410291,0.05418779,64440.0,64439.0,1.06369573]
[1719105411798,0.05412021,64440.0,64439.0,1.52662785]
[1719105411977,0.05312021,64440.0,64439.0,1.51762785]
[1719105412211,0.04638779,64442.0,64441.0,0.2464]
[1719105412364,0.09933122,64442.0,64441.0,0.78684873]
[1719105412618,0.04638779,64444.0,64443.0,0.57975873]
[1719105412818,0.04638779,64446.0,64445.0,0.57974973]
[1719105413079,0.09933085,64446.0,64445.0,1.04526273]
[1719105414400,0.05294306,64446.0,64445.0,1.04526273]
[1719105414577,0.46604476,64462.0,64445.0,1.04526273]
[1719105414775,0.27829633,64456.0,64455.0,0.1026]
[1719105416701,0.27829633,64456.0,64455.0,0.1066]
[1719105416921,0.19456252,64456.0,64455.0,0.1066]
[1719105418270,0.05540565,64456.0,64455.0,0.1066]
[1719105418468,0.05410825,64456.0,64455.0,0.1066]
[1719105418975,0.19699966,64456.0,64455.0,0.1066]
[1719105419361,0.19679514,64456.0,64455.0,0.1066]
[1719105420795,0.19881552,64456.0,64455.0,0.1066]
[1719105421135,0.19881552,64456.0,64455.0,0.261747]
[1719105423097,0.14434819,64456.0,64455.0,0.261747]
[1719105423252,0.20038387,64456.0,64455.0,0.261747]
[1719105425513,0.19935276,64456.0,64455.0,0.261747]
[1719105425868,0.19935264,64456.0,64455.0,0.261747]
[1719105426075,0.00085,64456.0,64455.0,0.261747]
[1719105426240,0.05498849,64456.0,64455.0,0.261747]
[1719105426444,0.0568149,64456.0,64455.0,0.261747]
[1719105426644,0.0549756,64456.0,64455.0,0.261747]
[1719105426845,0.19925639,64456.0,64455.0,0.261747]
[1719105427743,0.19965387,64456.0,64455.0,0.261747]
[1719105429113,0.05696101,64456.0,64455.0,0.261747]
[1719105429420,0.11128146,64456.0,64455.0,0.261747]
[1719105429825,0.19978268,64456.0,64455.0,0.261747]
[1719105431738,0.13078688,64461.0,64456.0,0.155144]
[1719105431936,0.15256112,64460.0,64456.0,0.155144]
[1719105434691,0.15356112,64460.0,64456.0,0.155144]
[1719105435038,0.15356112,64460.0,64457.0,0.155141]
[1719105436564,0.0519,64458.0,64457.0,0.155141]
[1719105436973,0.15256112,64460.0,64457.0,0.155141]
[1719105437182,0.001,64460.0,64455.0,0.33329873]
[1719105437428,0.13919258,64458.0,64457.0,0.155142]
[1719105437840,0.13919258,64458.0,64457.0,0.159142]
[1719105438054,0.0519,64461.0,64459.0,0.155137]
[1719105438254,0.2519,64461.0,64459.0,0.155137]
[1719105439835,0.07382137,64460.0,64459.0,0.155137]
[1719105440598,0.07382137,64460.0,64459.0,0.383237]
[1719105440801,0.21298855,64460.0,64459.0,0.693511]
[1719105441037,0.02091601,64466.0,64460.0,0.155132]
[1719105441189,0.2,64462.0,64460.0,0.155132]
[1719105441535,0.07393239,64461.0,64460.0,0.465401]
[1719105441855,0.11279651,64461.0,64460.0,0.465401]
[1719105441977,0.11279651,64461.0,64460.0,0.77567]
[1719105443942,0.13917591,64463.0,64461.0,0.310265]
[1719105444162,0.0519,64466.0,64463.0,0.155126]
[1719105444365,0.2,64464.0,64463.0,0.155126]
[1719105444538,0.46152505,64464.0,64463.0,0.155126]
[1719105445532,0.46153392,64464.0,64463.0,0.155126]
[1719105445729,0.46153392,64464.0,64463.0,0.79864373]
[1719105445730,0.45113572,64464.0,64463.0,0.79864373]
[1719105445956,0.11200307,64464.0,64463.0,0.79864373]
[1719105446814,0.11200307,64464.0,64463.0,0.79964373]
[1719105446963,0.11200307,64464.0,64463.0,0.79864373]
[1719105446964,0.07346261,64464.0,64463.0,0.79864373]
[1719105447164,0.00085,64468.0,64467.0,0.155118]
[1719105447165,0.13997523,64468.0,64467.0,0.155118]
[1719105447365,0.11262856,64468.0,64467.0,0.48836173]
[1719105447800,0.15521168,64468.0,64467.0,0.48836173]
[1719105447996,0.13202547,64468.0,64467.0,0.79859773]
[1719105448402,0.13202547,64468.0,64467.0,0.80059773]
[1719105448403,0.03927416,64468.0,64467.0,0.80059773]
[1719105448828,0.03927416,64468.0,64467.0,0.82059773]
[1719105449063,0.10882354,64468.0,64467.0,1.24803373]
[1719105449897,0.10882354,64468.0,64467.0,1.39583373]
[1719105449898,0.08564082,64468.0,64467.0,1.39583373]
[1719105450100,0.04025572,64468.0,64467.0,1.39583373]
[1719105450420,0.00085,64468.0,64467.0,2.06663085]
[1719105450627,0.00085,64468.0,64467.0,2.05863085]
[1719105450996,0.00085,64468.0,64467.0,2.07163085]
[1719105451196,0.00085,64468.0,64467.0,2.05863085]
[1719105451577,0.00085,64468.0,64467.0,2.07263085]
[1719105452203,0.00085,64468.0,64467.0,1.87263085]
[1719105452410,0.00085,64468.0,64467.0,2.07263085]
[1719105453132,0.00085,64468.0,64467.0,1.87263085]
[1719105453497,0.00085,64468.0,64467.0,1.82073085]
[1719105453719,0.00085,64468.0,64467.0,1.87263085]
[1719105455050,0.069504,64480.0,64467.0,1.87263085]
[1719105455051,0.046336,64480.0,64479.0,0.04300773]
[1719105455250,0.13900801,64492.0,64477.0,0.08]
[1719105455251,0.046336,64487.0,64486.0,0.02300773]
[1719105455457,0.03847556,64487.0,64486.0,0.33315173]
[1719105455654,0.03847556,64487.0,64486.0,0.79836773]
[1719105455999,0.04631291,64489.0,64488.0,0.48820973]
[1719105456131,0.08478187,64489.0,64488.0,0.48820973]
[1719105456339,0.03846896,64489.0,64488.0,0.48820973]
[1719105457051,0.0383216,64490.0,64489.0,0.48820273]
[1719105457252,0.03332167,64490.0,64489.0,0.33313773]
[1719105457459,0.04631291,64492.0,64491.0,0.15506]
[1719105458250,0.10844491,64493.0,64491.0,0.15506]
[1719105458911,0.10838761,64493.0,64490.0,0.02300773]
[1719105459046,0.10838761,64493.0,64491.0,0.02300773]
[1719105459244,0.062132,64493.0,64492.0,0.155057]
[1719105460890,0.20514018,64498.0,64492.0,0.155057]
[1719105461086,0.0519,64495.0,64492.0,0.155057]
[1719105461667,0.0519,64495.0,64492.0,0.160057]
[1719105462893,0.0519,64495.0,64492.0,0.155057]
[1719105463720,0.0519,64495.0,64491.0,0.02300773]
[1719105464043,0.0519,64495.0,64492.0,0.005]
[1719105464257,0.155048,64496.0,64492.0,0.005]
[1719105464457,0.0519,64494.0,64492.0,0.005]
[1719105464760,0.0519,64494.0,64492.0,0.155057]
[1719105465289,0.0519,64494.0,64492.0,0.369157]
[1719105466045,0.155046,64497.0,64492.0,0.369157]
[1719105466248,0.0519,64496.0,64492.0,0.369157]
[1719105467192,0.03797718,64495.0,64492.0,0.369157]
[1719105467577,0.03797718,64495.0,64492.0,0.371157]
[1719105467699,0.03797718,64495.0,64492.0,0.369157]
[1719105467902,0.03797718,64495.0,64492.0,0.372157]
[1719105468319,0.03797718,64495.0,64492.0,0.369157]
[1719105468640,0.03797718,64495.0,64492.0,0.374157]
[1719105471377,0.03798682,64494.0,64492.0,0.374157]
[1719105471588,0.03798682,64493.0,64492.0,0.374157]
[1719105471768,0.03798675,64495.0,64492.0,0.374157]
[1719105471918,0.03798675,64494.0,64492.0,0.374157]
[1719105472121,0.03798675,64493.0,64492.0,0.374157]
[1719105472711,0.03779308,64493.0,64492.0,0.374157]
[1719105473226,0.03779308,64495.0,64492.0,0.374157]
[1719105473775,0.03779308,64495.0,64492.0,0.369157]
[1719105474157,0.03779308,64495.0,64492.0,0.376157]
[1719105474364,0.0519,64496.0,64492.0,0.369157]
[1719105474562,0.03786948,64495.0,64492.0,0.369157]
[1719105474764,0.03786948,64495.0,64492.0,0.376157]
[1719105476136,0.03786948,64494.0,64492.0,0.376157]
[1719105476347,0.02095583,64498.0,64496.0,0.155047]
[1719105476548,0.155036,64502.0,64496.0,0.155047]
[1719105476549,0.0378379,64497.0,64496.0,0.155047]
[1719105476757,0.0378379,64497.0,64494.0,0.310105]
[1719105476758,0.03778556,64501.0,64498.0,0.12]
[1719105476960,0.0377858,64500.0,64498.0,0.12]
[1719105477160,0.0377858,64499.0,64498.0,0.12]
[1719105477356,0.155034,64502.0,64498.0,0.12]
[1719105477560,0.03778501,64501.0,64498.0,0.12]
[1719105477967,0.03878501,64501.0,64498.0,0.12]
[1719105478165,0.03778501,64500.0,64498.0,0.12]
[1719105478422,0.03778501,64499.0,64498.0,0.12]
[1719105479722,0.03778501,64499.0,64497.0,0.27215273]
[1719105479723,0.03778501,64499.0,64497.0,0.11710773]
[1719105480056,0.03778501,64498.0,64497.0,0.11710773]
[1719105480483,0.206936,64501.0,64497.0,0.11710773]
[1719105480620,0.03720911,64500.0,64497.0,0.11710773]
[1719105481025,0.0371664,64499.0,64497.0,0.12210773]
[1719105481225,0.206936,64501.0,64497.0,0.12210773]
[1719105481226,0.0371664,64498.0,64497.0,0.12210773]
[1719105481490,0.0371664,64500.0,64497.0,0.11710773]
[1719105481720,0.0371664,64500.0,64497.0,0.11910773]
[1719105482470,0.1922044,64500.0,64497.0,0.02300773]
[1719105482815,0.155038,64500.0,64497.0,0.02300773]
[1719105482956,0.0519,64498.0,64497.0,0.02300773]
[1719105483158,0.08901869,64498.0,64497.0,0.02300773]
[1719105483787,0.16113061,64498.0,64497.0,0.02300773]
[1719105484002,0.16113061,64498.0,64497.0,0.02800773]
[1719105484272,0.16198061,64498.0,64497.0,0.02800773]
[1719105484444,0.16198061,64498.0,64497.0,0.02300773]
[1719105484664,0.16198061,64498.0,64497.0,0.02900773]
[1719105485958,0.09004065,64498.0,64497.0,0.02900773]
[1719105486162,0.16231274,64498.0,64497.0,0.02900773]
[1719105486338,0.20855004,64498.0,64497.0,0.02900773]
[1719105486939,0.15665004,64498.0,64497.0,0.02900773]
[1719105487339,0.11041274,64498.0,64497.0,0.02900773]
[1719105487983,0.15668222,64498.0,64497.0,0.02900773]
[1719105488204,0.03814065,64498.0,64497.0,0.02900773]
[1719105488404,0.11065454,64498.0,64497.0,0.02900773]
[1719105488819,0.00085,64498.0,64497.0,0.02900773]
[1719105489021,0.07336462,64498.0,64497.0,0.02900773]
[1719105489356,0.10784913,64498.0,64497.0,0.02900773]
[1719105489822,0.18072683,64498.0,64497.0,0.02900773]
[1719105490028,0.18072683,64498.0,64497.0,0.20405273]
[1719105490231,0.03839418,64498.0,64497.0,0.29935273]
[1719105490456,0.10893454,64498.0,64497.0,0.60944373]
[1719105491196,0.14919523,64498.0,64497.0,0.60944373]
[1719105491816,0.15001288,64498.0,64497.0,0.60944373]
[1719105492032,0.15001288,64498.0,64497.0,0.73794373]
[1719105492239,0.17316453,64498.0,64497.0,0.73794373]
[1719105492461,0.17316453,64498.0,64497.0,1.04803473]
[1719105493072,0.05104205,64506.0,64501.0,0.155034]
[1719105493299,0.14469123,64505.0,64502.0,0.155033]
[1719105493611,0.07453646,64504.0,64502.0,0.155033]
[1719105493799,0.07453646,64503.0,64502.0,0.155033]
[1719105494736,0.29023897,64507.0,64502.0,0.155033]
[1719105494962,0.10554047,64506.0,64502.0,0.155033]
[1719105495181,0.10554047,64505.0,64502.0,0.155033]
[1719105495356,0.10554047,64504.0,64502.0,0.155033]
[1719105495562,0.10554047,64503.0,64502.0,0.155033]
[1719105495771,0.10654047,64503.0,64502.0,0.155033]
[1719105495974,0.10554047,64503.0,64502.0,0.155033]
[1719105496854,0.10554047,64503.0,64502.0,0.48810773]
[1719105497077,0.07025,64503.0,64502.0,0.48810773]
[1719105497300,0.07025,64503.0,64502.0,0.79817473]
[1719105497520,0.0519,64510.0,64507.0,0.15502]
[1719105497879,0.10877338,64509.0,64507.0,0.15502]
[1719105498089,0.0519,64510.0,64507.0,0.15502]
[1719105498090,0.06990704,64508.0,64507.0,0.15502]
[1719105498287,0.10876582,64508.0,64507.0,0.15502]
[1719105499461,0.10876582,64508.0,64507.0,0.17802773]
[1719105499599,0.10876582,64508.0,64507.0,0.49007073]
[1719105499797,0.10876582,64508.0,64507.0,0.48807073]
[1719105500201,0.06990704,64508.0,64507.0,0.49307073]
[1719105500406,0.10876582,64508.0,64507.0,0.62157073]
[1719105500826,0.20866525,64513.0,64509.0,0.155015]
[1719105501047,0.10847259,64512.0,64511.0,0.17801973]
[1719105501651,0.20856371,64512.0,64511.0,0.17801973]
[1719105501850,0.10847259,64512.0,64511.0,0.17801973]
[1719105502313,0.10947259,64512.0,64511.0,0.02300773]
[1719105503012,0.14252963,64512.0,64511.0,0.02300773]
[1719105503214,0.24256472,64512.0,64511.0,0.02300773]
[1719105503836,0.14028303,64512.0,64511.0,0.02300773]
[1719105503964,0.24159001,64512.0,64511.0,0.02300773]
[1719105505230,0.10130698,64512.0,64511.0,0.02300773]
[1719105505434,0.10130698,64512.0,64511.0,0.02900773]
[1719105505847,0.10130698,64512.0,64511.0,0.02300773]
[1719105506024,0.10130698,64512.0,64511.0,0.02900773]
[1719105506809,0.19112466,64513.0,64511.0,0.02900773]
[1719105507028,0.10065796,64512.0,64511.0,0.02900773]
[1719105507237,0.10064842,64512.0,64511.0,0.02900773]
[1719105508794,0.15254842,64512.0,64511.0,0.02900773]
[1719105509339,0.10064842,64512.0,64511.0,0.02900773]
[1719105509553,0.15254842,64512.0,64511.0,0.02900773]
[1719105509755,0.11965256,64512.0,64511.0,0.02900773]
[1719105510007,0.15218757,64512.0,64511.0,0.02900773]
[1719105512711,0.0519,64512.0,64511.0,0.02900773]
[1719105513125,0.15214559,64512.0,64511.0,0.02900773]
[1719105515546,0.10024559,64512.0,64511.0,0.02900773]
[1719105515767,0.0519,64512.0,64511.0,0.02900773]
[1719105515943,0.15292126,64512.0,64511.0,0.02900773]
[1719105516145,0.15378426,64512.0,64511.0,0.02900773]
[1719105517423,0.15277515,64512.0,64511.0,0.02900773]
[1719105517666,0.15362515,64512.0,64511.0,0.02900773]
[1719105518731,0.05275,64512.0,64511.0,0.02900773]
[1719105518928,0.1534915,64512.0,64511.0,0.02900773]
[1719105521387,0.29267482,64512.0,64511.0,0.02900773]
[1719105521742,0.19197531,64512.0,64511.0,0.02900773]
[1719105521933,0.29252808,64512.0,64511.0,0.02900773]
[1719105522385,0.33365238,64512.0,64511.0,0.02900773]
[1719105522589,0.48866138,64512.0,64511.0,0.02900773]
[1719105523278,0.34943607,64512.0,64511.0,0.02900773]
[1719105523456,0.29753607,64512.0,64511.0,0.02900773]
[1719105523652,0.34943607,64512.0,64511.0,0.02900773]
[1719105524078,0.65945507,64512.0,64511.0,0.02900773]
[1719105524412,1.54485907,64512.0,64511.0,0.006]
[1719105524613,1.72148755,64512.0,64511.0,0.006]
[1719105524822,1.56485907,64512.0,64511.0,0.006]
[1719105525031,1.54864767,64512.0,64511.0,0.006]
[1719105525246,1.423182,64512.0,64511.0,0.006]
[1719105525437,1.54915644,64512.0,64511.0,0.006]
[1719105525646,1.54915644,64512.0,64505.0,0.02300773]
[1719105525647,0.155024,64506.0,64505.0,0.02300773]
[1719105525846,0.33289844,64506.0,64505.0,0.02300773]
[1719105526433,0.33149913,64506.0,64505.0,0.02300773]
[1719105526754,0.33094326,64506.0,64505.0,0.02300773]
[1719105526931,0.64099126,64506.0,64505.0,0.02300773]
[1719105527131,0.64099126,64506.0,64505.0,0.02600773]
[1719105528039,0.55225348,64506.0,64505.0,0.02600773]
[1719105528275,0.37149834,64506.0,64505.0,0.02600773]
[1719105528419,0.52652234,64506.0,64505.0,0.02600773]
[1719105530613,0.57842234,64506.0,64505.0,0.02600773]
[1719105531128,0.57912991,64506.0,64505.0,0.02600773]
[1719105533410,0.52722991,64506.0,64505.0,0.02600773]
[1719105533611,0.57912991,64506.0,64505.0,0.02600773]
[1719105534028,0.58019079,64506.0,64505.0,0.02600773]
[1719105535559,0.58130454,64506.0,64505.0,0.02600773]
[1719105537078,0.5178548,64506.0,64505.0,0.02600773]
[1719105537316,0.58118873,64506.0,64505.0,0.02600773]
[1719105538051,0.52928873,64506.0,64505.0,0.02600773]
[1719105538244,0.61336983,64506.0,64505.0,0.02600773]
[1719105540167,0.61456559,64506.0,64505.0,0.02600773]
[1719105541002,0.63539297,64506.0,64505.0,0.02600773]
[1719105541712,0.58349297,64506.0,64505.0,0.02600773]
[1719105541972,0.63539297,64506.0,64505.0,0.02600773]
[1719105542538,0.63661728,64506.0,64505.0,0.02600773]
[1719105543074,0.63661875,64506.0,64505.0,0.02600773]
[1719105544022,0.63843595,64506.0,64505.0,0.02600773]
[1719105544235,0.30350657,64506.0,64505.0,0.02600773]
[1719105544662,0.12765519,64506.0,64505.0,0.02600773]
[1719105544914,0.12765519,64506.0,64505.0,0.25420773]
[1719105545501,0.36368419,64510.0,64507.0,0.02300773]
[1719105545703,0.12877907,64509.0,64507.0,0.02300773]
[1719105545900,0.12877907,64508.0,64507.0,0.02300773]
[1719105547513,0.12877907,64508.0,64507.0,0.02400773]
[1719105548456,0.03471535,64508.0,64507.0,0.02400773]
[1719105548657,0.06405442,64508.0,64507.0,0.02400773]
[1719105548874,0.12875799,64508.0,64507.0,0.02400773]
[1719105550594,0.12875799,64508.0,64507.0,0.50907173]
[1719105550765,0.12875799,64508.0,64507.0,1.04731473]
[1719105550766,0.23341153,64508.0,64507.0,1.04731473]
[1719105551161,0.14633179,64508.0,64507.0,1.58991885]
[1719105551342,0.00085,64508.0,64507.0,1.58991885]
[1719105552058,0.03067515,64508.0,64507.0,1.58991885]
[1719105552592,0.10035818,64508.0,64507.0,1.58991885]
[1719105552795,0.10035818,64508.0,64507.0,1.58891885]
[1719105552998,0.10035818,64508.0,64507.0,1.60291885]
[1719105553138,0.03067515,64508.0,64507.0,1.60291885]
[1719105553755,0.03067515,64508.0,64507.0,1.58891885]
[1719105554136,0.07711635,64508.0,64507.0,1.60291885]
[1719105554393,0.07665985,64508.0,64507.0,1.60291885]
[1719105554833,0.07665985,64508.0,64507.0,1.65481885]
[1719105556190,0.03021908,64508.0,64507.0,1.65481885]
[1719105556642,0.00085,64508.0,64507.0,1.65481885]
[1719105557578,0.00085,64508.0,64507.0,1.85481885]
[1719105558013,0.00085,64508.0,64507.0,1.65481885]
[1719105558481,0.00085,64508.0,64507.0,1.85481885]
[1719105559336,0.00085,64508.0,64507.0,2.15086185]
[1719105559746,0.00085,64508.0,64507.0,2.16486185]
[1719105560049,0.00085,64508.0,64507.0,2.15086185]
[1719105560430,0.00085,64508.0,64507.0,2.16486185]
[1719105560804,0.00085,64508.0,64507.0,2.26486185]
[1719105562531,0.00085,64508.0,64507.0,2.38786185]
[1719105562951,0.00085,64508.0,64507.0,2.48786185]
[1719105563467,0.00085,64508.0,64507.0,2.47386185]
[1719105563697,0.00085,64508.0,64507.0,2.48786185]
[1719105564561,0.00085,64512.0,64511.0,1.83811573]
[1719105564774,0.00085,64512.0,64511.0,2.37367685]
[1719105565412,0.01431305,64526.0,64525.0,1.04899973]
[1719105565575,0.38845,64537.0,64527.0,0.48792773]
[1719105565774,0.14631319,64528.0,64527.0,0.48792773]
[1719105566018,0.0303591,64528.0,64527.0,0.48792773]
[1719105566444,0.00851,64529.0,64528.0,0.48792073]
[1719105566869,0.03815819,64529.0,64528.0,0.48792073]
[1719105567918,0.03815819,64529.0,64528.0,0.49492073]
[1719105569369,0.00851,64529.0,64528.0,0.49492073]
[1719105570033,0.03796033,64529.0,64528.0,0.49492073]